lending/lending_fUSD_20250621
["ID","MTS","AMOUNT","RATE_DAILY","PERIOD"]
[366819607,1750474248824,-490.0,0.00026772,4]
[366819608,1750474248836,-490.0,0.00026772,4]
[366819609,1750474248848,-490.0,0.00026772,4]
[366819610,1750474248860,-479.75288683,0.00026772,4]
[366819611,1750474248872,-490.0,0.00026772,4]
[366819612,1750474248883,-490.0,0.00026772,4]
[366819613,1750474248895,-490.0,0.00026772,4]
[366819614,1750474248907,-490.0,0.00026772,4]
[366819615,1750474248919,-512.17,0.00026772,4]
[366819616,1750474248933,-490.0,0.00026772,4]
[366819617,1750474248945,-182.449486,0.00026772,7]
[366819618,1750474248956,-182.449486,0.00026772,7]
[366819619,1750474248967,-151.0,0.00026772,7]
[366819620,1750474248980,-227.528202,0.00026772,7]
[366819621,1750474248991,-227.528202,0.00026772,7]
[366819622,1750474249003,-213.542876,0.00026772,7]
[366819623,1750474249015,-213.542876,0.00026772,7]
[366819624,1750474249028,-209.992116,0.00026772,7]
[366819625,1750474249330,-209.992116,0.00026772,7]
[366819626,1750474249360,-151.0,0.00026772,7]
[366819627,1750474249385,-500.0,0.00026773,2]
[366819628,1750474249395,-500.0,0.00026773,2]
[366819629,1750474249405,-500.0,0.00026773,2]
[366819630,1750474249415,-2000.0,0.00026776,60]
[366819631,1750474249425,-512.821426,0.00026776,120]
[366819632,1750474249435,-500.0,0.00026799,4]
[366819633,1750474249444,-14068.67,0.000268,2]
[366819634,1750474249454,-77149.28,0.000268,7]
[366819635,1750474249464,-506.067724,0.000268,7]
[366819636,1750474249473,-151.0,0.000268,7]
[366819637,1750474249482,-506.067724,0.000268,7]
[366819638,1750474249492,-151.0,0.000268,7]
[366819639,1750474249502,-213.318771,0.000268,7]
[366819640,1750474249512,-206.083001,0.000268,7]
[366819641,1750474249523,-206.083001,0.000268,7]
[366819642,1750474249532,-151.0,0.000268,7]
[366819643,1750474249542,-151.0,0.000268,7]
[366819644,1750474249551,-183.408709,0.000268,7]
[366819645,1750474249561,-183.408709,0.000268,7]
[366819646,1750474249570,-834.26476573,0.000268,7]
[366819647,1750474249581,-182.449486,0.000268,7]
[366819648,1750474249591,-182.449486,0.000268,7]
[366819649,1750474249601,-151.0,0.000268,7]
[366819650,1750474249610,-227.528202,0.000268,7]
[366819651,1750474249619,-227.528202,0.000268,7]
[366819652,1750474249630,-151.0,0.000268,7]
[366819653,1750474249641,-213.542876,0.000268,7]
[366819654,1750474249650,-213.542873,0.000268,7]
[366819655,1750474249660,-209.992116,0.000268,7]
[366819656,1750474249671,-209.992116,0.000268,7]
[366819657,1750474249681,-151.0,0.000268,7]
[366819658,1750474249691,-192.117625,0.000268,7]
[366819659,1750474249700,-192.117625,0.000268,7]
[366819660,1750474249711,-1800.0,0.000268,9]
[366819661,1750474249721,-490.0,0.00026809,4]
[366819662,1750474249731,-490.0,0.00026809,4]
[366819663,1750474249741,-490.0,0.00026809,4]
[366819664,1750474249752,-490.0,0.00026809,4]
[366819665,1750474249762,-490.0,0.00026809,4]
[366819666,1750474249772,-490.0,0.00026809,4]
[366819667,1750474249783,-490.0,0.00026809,4]
[366819668,1750474249792,-490.0,0.00026809,4]
[366819669,1750474249802,-490.0,0.00026809,4]
[366819670,1750474249811,-572.62458741,0.00026809,4]
[366819671,1750474249821,-490.0,0.00026809,4]
[366819672,1750474249830,-490.0,0.00026809,4]
[366819673,1750474249840,-490.0,0.00026809,4]
[366819674,1750474249849,-490.0,0.00026809,4]
[366819675,1750474249858,-490.0,0.00026809,4]
[366819676,1750474249868,-490.0,0.00026809,4]
[366819677,1750474249877,-490.0,0.00026809,4]
[366819678,1750474249887,-511.49018926,0.00026809,4]
[366819679,1750474249896,-301.05107559,0.00026809,4]
[366819680,1750474249906,-490.0,0.00026809,4]
[366819681,1750474249916,-490.0,0.00026809,4]
[366819682,1750474249925,-490.0,0.00026809,4]
[366819683,1750474249935,-490.0,0.00026809,4]
[366819684,1750474249945,-490.0,0.00026809,4]
[366819685,1750474249954,-637.73892602,0.00026809,4]
[366819686,1750474249964,-490.0,0.00026809,4]
[366819687,1750474249973,-490.0,0.00026809,4]
[366819688,1750474249983,-490.0,0.00026809,4]
[366819689,1750474249992,-490.0,0.00026809,4]
[366819690,1750474250002,-537.67912573,0.00026809,4]
[366819691,1750474250012,-490.0,0.00026809,4]
[366819692,1750474250022,-490.0,0.00026809,4]
[366819693,1750474250031,-169.64543745,0.00026809,4]
[366819694,1750474250043,-490.0,0.00026809,4]
[366819695,1750474250054,-490.0,0.00026809,4]
[366819696,1750474250064,-377.02,0.00026809,4]
[366819697,1750474250074,-490.0,0.00026809,4]
[366819698,1750474250084,-490.0,0.00026809,4]
[366819699,1750474250094,-260.80118622,0.00026809,4]
[366819700,1750474250104,-490.0,0.00026809,4]
[366819701,1750474250114,-490.0,0.00026809,4]
[366819702,1750474250124,-825.65,0.00026809,4]
[366819703,1750474250134,-490.0,0.00026809,4]
[366819704,1750474250144,-490.0,0.00026809,4]
[366819705,1750474250154,-1964.92,0.00026809,4]
[366819706,1750474250165,-490.0,0.00026809,4]
[366819707,1750474250175,-490.0,0.00026809,4]
[366819708,1750474250185,-560.31,0.00026809,4]
[366819709,1750474250194,-490.0,0.00026809,4]
[366819710,1750474250204,-490.0,0.00026809,4]
[366819711,1750474250214,-343.96338408,0.00026809,4]
[366819712,1750474250224,-490.0,0.00026809,4]
[366819713,1750474250234,-490.0,0.00026809,4]
[366819714,1750474250244,-860.96,0.00026809,4]
[366819715,1750474250254,-490.0,0.00026809,4]
[366819716,1750474250264,-503.75,0.00026809,4]
[366819717,1750474250275,-490.0,0.00026809,4]
[366819718,1750474250285,-482.9736486,0.00026809,4]
[366819719,1750474250295,-664.46,0.00026809,4]
[366819720,1750474250306,-490.0,0.00026809,4]
[366819721,1750474250317,-490.0,0.00026809,4]
[366819722,1750474250327,-490.0,0.00026809,4]
[366819723,1750474250337,-490.0,0.00026809,4]
[366819724,1750474250346,-490.0,0.00026809,4]
[366819725,1750474250355,-490.0,0.00026809,4]
[366819726,1750474250365,-610.22,0.00026809,4]
[366819727,1750474250375,-482.1,0.00026809,4]
[366819728,1750474250385,-830.0,0.00026809,4]
[366819729,1750474250395,-490.0,0.00026809,4]
[366819730,1750474250406,-490.0,0.00026809,4]
[366819731,1750474250416,-490.0,0.00026809,4]
[366819732,1750474250426,-490.0,0.00026809,4]
[366819733,1750474250436,-490.0,0.00026809,4]
[366819734,1750474250445,-1694.66,0.00026809,4]
[366819735,1750474250454,-577.64570812,0.00026809,4]
[366819736,1750474250463,-490.0,0.00026809,4]
[366819737,1750474250472,-490.0,0.00026809,4]
[366819738,1750474250482,-490.0,0.00026809,4]
[366819739,1750474250491,-800.56,0.00026809,4]
[366819740,1750474250501,-490.0,0.00026809,4]
[366819741,1750474250510,-490.0,0.00026809,4]
[366819742,1750474250521,-490.0,0.00026809,4]
[366819743,1750474250531,-490.0,0.00026809,4]
[366819744,1750474250540,-490.0,0.00026809,4]
[366819745,1750474250550,-490.0,0.00026809,4]
[366819746,1750474250561,-490.0,0.00026809,4]
[366819747,1750474250572,-490.0,0.00026809,4]
[366819748,1750474250582,-490.0,0.00026809,4]
[366819749,1750474250592,-490.0,0.00026809,4]
[366819750,1750474250601,-490.0,0.00026809,4]
[366819751,1750474250611,-490.0,0.00026809,4]
[366819752,1750474250623,-490.0,0.00026809,4]
[366819753,1750474250633,-490.0,0.00026809,4]
[366819754,1750474250643,-490.0,0.00026809,4]
[366819755,1750474250652,-490.0,0.00026809,4]
[366819756,1750474250663,-490.0,0.00026809,4]
[366819757,1750474250674,-1474.0,0.00026817,2]
[366819758,1750474250684,-150.0,0.00026826,2]
[366819759,1750474250694,-800.16756629,0.00026831,15]
[366819760,1750474250704,-150.0,0.00026852,2]
[366819761,1750474250714,-508.39346599,0.00026873,4]
[366819762,1750474250724,-2500.0,0.00026898,2]
[366819763,1750474250734,-2300.0,0.000269,9]
[366819764,1750474250743,-150.0,0.00026905,2]
[366819765,1750474250753,-191.0,0.00026906,2]
[366819766,1750474250763,-215.0738,0.0002691,2]
[366819767,1750474250773,-156.587,0.0002691,2]
[366819768,1750474250782,-1000.0,0.00026914,2]
[366819769,1750474250792,-150.0,0.00026924,2]
[366819770,1750474250802,-4296.33916034,0.00026953,2]
[366819771,1750474250811,-191.0,0.00026956,2]
[366819772,1750474250821,-490.0,0.00026963,4]
[366819773,1750474250831,-182.449486,0.00026963,7]
[366819774,1750474250840,-182.449492,0.00026963,7]
[366819775,1750474250850,-490.0,0.00026963,4]
[366819776,1750474250860,-151.0,0.00026963,7]
[366819777,1750474250870,-490.0,0.00026963,4]
[366819778,1750474250879,-490.0,0.00026963,4]
[366819779,1750474250890,-227.528202,0.00026963,7]
[366819780,1750474250900,-227.5282,0.00026963,7]
[366819781,1750474250910,-219.963823,0.00026963,7]
[366819782,1750474250920,-209.992116,0.00026963,7]
[366819783,1750474250930,-209.992115,0.00026963,7]
[366819784,1750474250939,-200.0,0.00026966,2]
[366819785,1750474250949,-500.0,0.00026973,2]
[366819786,1750474250959,-500.0,0.00026973,2]
[366819787,1750474250969,-500.0,0.00026973,2]
[366819788,1750474250978,-150.0,0.00026978,2]
[366819789,1750474250988,-3682.14532,0.0002698,2]
[366819790,1750474250998,-668.82769162,0.00026981,2]
[366819791,1750474251008,-151.0,0.00026981,7]
[366819792,1750474251017,-506.067724,0.00026982,7]
[366819793,1750474251028,-506.067724,0.00026982,7]
[366819794,1750474251037,-151.0,0.00026982,7]
[366819795,1750474251051,-206.083001,0.00026982,7]
[366819796,1750474251060,-206.083001,0.00026982,7]
[366819797,1750474251070,-151.0,0.00026982,7]
[366819798,1750474251079,-151.0,0.00026982,7]
[366819799,1750474251090,-183.408709,0.00026982,7]
[366819800,1750474251099,-183.408709,0.00026982,7]
[366819801,1750474251109,-83457.4653492,0.00026982,2]
[366819802,1750474251119,-2914.6049099,0.00026982,2]
[366819803,1750474251130,-192.117625,0.00026982,7]
[366819804,1750474251139,-192.117625,0.00026982,7]
[366819805,1750474251149,-151.0,0.00026986,2]
[366819806,1750474251159,-151.67477873,0.00026987,2]
[366819807,1750474251169,-150.0,0.00026988,2]
[366819808,1750474251179,-500.0,0.00026999,4]
[366819809,1750474251188,-1561.01,0.00027,2]
[366819810,1750474251198,-2000.0,0.00027,2]
[366819811,1750474251208,-1411.36,0.00027,2]
[366819812,1750474251217,-250.0,0.00027,2]
[366819813,1750474251227,-1004.69320446,0.00027,2]
[366819814,1750474251236,-10415.70446286,0.00027,2]
[366819815,1750474251245,-148241.22157996,0.00027,2]
[366819816,1750474251255,-506.067724,0.00027,7]
[366819817,1750474251265,-151.0,0.00027,7]
[366819818,1750474251275,-506.067724,0.00027,7]
[366819819,1750474251285,-151.0,0.00027,7]
[366819820,1750474251295,-206.083001,0.00027,7]
[366819821,1750474251304,-206.083001,0.00027,7]
[366819822,1750474251315,-151.0,0.00027,7]
[366819823,1750474251325,-151.0,0.00027,7]
[366819824,1750474251335,-183.408709,0.00027,7]
[366819825,1750474251345,-183.408709,0.00027,7]
[366819826,1750474251357,-400.0,0.00027,2]
[366819827,1750474251367,-178.0,0.00027,7]
[366819828,1750474251377,-5707.39,0.00027,2]
[366819829,1750474251387,-192.117625,0.00027,7]
[366819830,1750474251397,-192.117625,0.00027,7]
[366819831,1750474251408,-2106.409249,0.0002701,2]
[366819832,1750474251418,-150.0,0.0002702,2]
[366819833,1750474251428,-1000.0,0.00027021,2]
[366819834,1750474251438,-1000.0,0.00027021,2]
[366819835,1750474251447,-1000.0,0.00027021,2]
[366819836,1750474251457,-1000.0,0.00027021,2]
[366819837,1750474251468,-946.04353842,0.00027021,2]
[366819838,1750474251478,-150.0,0.00027025,2]
[366819839,1750474251488,-150.0,0.00027037,2]
[366819840,1750474251498,-22182.67136559,0.00027042,2]
[366819841,1750474251508,-231.65,0.00027045,4]
[366819842,1750474251518,-178.62559265,0.00027045,4]
[366819843,1750474251528,-490.0,0.00027045,4]
[366819844,1750474251539,-542.05612742,0.00027045,4]
[366819845,1750474251550,-490.0,0.00027045,4]
[366819846,1750474251560,-490.0,0.00027045,4]
[366819847,1750474251570,-490.0,0.00027045,4]
[366819848,1750474251580,-490.0,0.00027045,4]
[366819849,1750474251591,-1100.35,0.00027045,4]
[366819850,1750474251601,-490.0,0.00027045,4]
[366819851,1750474251611,-490.0,0.00027045,4]
[366819852,1750474251622,-490.0,0.00027045,4]
[366819853,1750474251632,-490.0,0.00027045,4]
[366819854,1750474251642,-490.0,0.00027045,4]
[366819855,1750474251652,-953.12,0.00027045,4]
[366819856,1750474251663,-490.0,0.00027045,4]
[366819857,1750474251674,-490.0,0.00027045,4]
[366819858,1750474251684,-490.0,0.00027045,4]
[366819859,1750474251694,-3269.61,0.00027045,4]
[366819860,1750474251704,-552.55,0.00027045,4]
[366819861,1750474251714,-1038.32,0.00027045,4]
[366819862,1750474251725,-526.173511,0.00027045,4]
[366819863,1750474251735,-490.0,0.00027045,4]
[366819864,1750474251745,-913.56,0.00027045,4]
[366819865,1750474251756,-490.0,0.00027045,4]
[366819866,1750474251766,-490.0,0.00027045,4]
[366819867,1750474251776,-490.0,0.00027045,4]
[366819868,1750474251786,-212.48183671,0.00027045,4]
[366819869,1750474251796,-490.0,0.00027045,4]
[366819870,1750474251805,-490.0,0.00027045,4]
[366819871,1750474251815,-212.56707156,0.00027045,4]
[366819872,1750474251825,-490.0,0.00027045,4]
[366819873,1750474251834,-490.0,0.00027045,4]
[366819874,1750474251844,-490.0,0.00027045,4]
[366819875,1750474251854,-591.39,0.00027045,4]
[366819876,1750474251864,-490.0,0.00027045,4]
[366819877,1750474251873,-590.41,0.00027045,4]
[366819878,1750474251883,-173.23,0.00027045,4]
[366819879,1750474251893,-490.0,0.00027045,4]
[366819880,1750474251903,-490.0,0.00027045,4]
[366819881,1750474251913,-490.0,0.00027045,4]
[366819882,1750474251923,-490.0,0.00027045,4]
[366819883,1750474251932,-490.0,0.00027045,4]
[366819884,1750474251942,-490.0,0.00027045,4]
[366819885,1750474251952,-490.0,0.00027045,4]
[366819886,1750474251962,-1449.52,0.00027045,4]
[366819887,1750474251972,-206.44,0.00027045,4]
[366819888,1750474251982,-490.0,0.00027045,4]
[366819889,1750474251992,-302.71718561,0.00027045,4]
[366819890,1750474252002,-513.00646624,0.00027045,4]
[366819891,1750474252012,-490.0,0.00027045,4]
[366819892,1750474252022,-490.0,0.00027045,4]
[366819893,1750474252033,-490.0,0.00027045,4]
[366819894,1750474252043,-490.0,0.00027045,4]
[366819895,1750474252055,-490.0,0.00027045,4]
[366819896,1750474252065,-697.72,0.00027045,4]
[366819897,1750474252075,-490.0,0.00027045,4]
[366819898,1750474252087,-648.37,0.00027045,4]
[366819899,1750474252097,-490.0,0.00027045,4]
[366819900,1750474252107,-490.0,0.00027045,4]
[366819901,1750474252116,-490.0,0.00027045,4]
[366819902,1750474252128,-490.0,0.00027045,4]
[366819903,1750474252138,-1005.71,0.00027045,4]
[366819904,1750474252148,-684.99,0.00027045,2]
[366819905,1750474252158,-572.70210011,0.00027045,4]
[366819906,1750474252168,-484.46,0.00027045,4]
[366819907,1750474252178,-490.0,0.00027045,4]
[366819908,1750474252188,-578.61892156,0.00027045,4]
[366819909,1750474252198,-490.0,0.00027045,4]
[366819910,1750474252208,-526.12,0.00027045,4]
[366819911,1750474252218,-490.0,0.00027045,4]
[366819912,1750474252229,-522.32,0.00027045,4]
[366819913,1750474252240,-423.63997837,0.00027045,4]
[366819914,1750474252250,-4046.66,0.00027045,4]
[366819915,1750474252260,-490.0,0.00027045,4]
[366819916,1750474252270,-495.64088137,0.00027045,4]
[366819917,1750474252280,-490.0,0.00027045,4]
[366819918,1750474252290,-602.57,0.00027045,4]
[366819919,1750474252300,-490.0,0.00027045,4]
[366819920,1750474252310,-490.0,0.00027045,4]
[366819921,1750474252320,-490.0,0.00027046,4]
[366819922,1750474252330,-490.0,0.00027046,4]
[366819923,1750474252340,-513.27959127,0.00027046,4]
[366819924,1750474252351,-490.0,0.00027046,4]
[366819925,1750474252360,-309.6662844,0.00027046,4]
[366819926,1750474252370,-192.8064618,0.00027046,4]
[366819927,1750474252380,-490.0,0.00027046,4]
[366819928,1750474252390,-490.0,0.00027046,4]
[366819929,1750474252400,-490.62131596,0.00027046,4]
[366819930,1750474252411,-490.0,0.00027046,4]
[366819931,1750474252421,-406.05074168,0.00027046,4]
[366819932,1750474252432,-490.0,0.00027046,4]
[366819933,1750474252442,-516.39185267,0.00027046,4]
[366819934,1750474252453,-490.0,0.00027046,4]
[366819935,1750474252463,-490.0,0.00027046,4]
[366819936,1750474252473,-490.0,0.00027046,4]
[366819937,1750474252482,-490.0,0.00027046,4]
[366819938,1750474252492,-490.0,0.00027046,4]
[366819939,1750474252502,-490.0,0.00027046,4]
[366819940,1750474252513,-490.0,0.00027046,4]
[366819941,1750474252524,-490.0,0.00027046,4]
[366819942,1750474252534,-503.95577111,0.00027046,4]
[366819943,1750474252544,-519.04266466,0.00027046,4]
[366819944,1750474252766,-490.0,0.00027046,4]
[366819945,1750474252782,-456.8803238,0.00027046,4]
[366819946,1750474252792,-490.0,0.00027046,4]
[366819947,1750474252802,-199.33794861,0.00027046,4]
[366819948,1750474252812,-490.0,0.00027046,4]
[366819949,1750474252823,-490.0,0.00027046,4]
[366819950,1750474252833,-381.76049769,0.00027046,4]
[366819951,1750474252843,-629.43,0.00027046,4]
[366819952,1750474252854,-490.0,0.00027046,4]
[366819953,1750474252864,-490.0,0.00027046,4]
[366819954,1750474252874,-490.0,0.00027046,4]
[366819955,1750474252884,-490.0,0.00027046,4]
[366819956,1750474252895,-490.0,0.00027046,4]
[366819957,1750474252906,-490.0,0.00027046,4]
[366819958,1750474252916,-490.0,0.00027046,4]
[366819959,1750474252926,-490.0,0.00027046,4]
[366819960,1750474252936,-413.58569932,0.00027046,4]
[366819961,1750474252946,-490.0,0.00027046,4]
[366819962,1750474252956,-288.50042903,0.00027046,4]
[366819963,1750474252966,-490.0,0.00027046,4]
[366819964,1750474252976,-490.0,0.00027046,4]
[366819965,1750474252986,-490.0,0.00027046,4]
[366819966,1750474252995,-490.0,0.00027046,4]
[366819967,1750474253005,-490.0,0.00027046,4]
[366819968,1750474253015,-490.0,0.00027046,4]
[366819969,1750474253025,-490.0,0.00027046,4]
[366819970,1750474253034,-490.0,0.00027046,4]
[366819971,1750474253047,-506.067724,0.00027046,7]
[366819972,1750474253057,-151.0,0.00027046,7]
[366819973,1750474253067,-506.067724,0.00027046,7]
[366819974,1750474253076,-490.0,0.00027046,4]
[366819975,1750474253087,-490.0,0.00027046,4]
[366819976,1750474253096,-151.0,0.00027046,7]
[366819977,1750474253106,-490.0,0.00027046,4]
[366819978,1750474253118,-490.0,0.00027046,4]
[366819979,1750474253130,-490.0,0.00027046,4]
[366819980,1750474253142,-206.083001,0.00027046,7]
[366819981,1750474253154,-490.0,0.00027046,4]
[366819982,1750474253165,-610.49,0.00027046,4]
[366819983,1750474253176,-206.083001,0.00027046,7]
[366819984,1750474253186,-490.0,0.00027046,4]
[366819985,1750474253196,-490.0,0.00027046,4]
[366819986,1750474253206,-490.0,0.00027046,4]
[366819987,1750474253217,-490.0,0.00027046,4]
[366819988,1750474253228,-151.0,0.00027046,7]
[366819989,1750474253241,-490.0,0.00027046,4]
[366819990,1750474253253,-490.0,0.00027046,4]
[366819991,1750474253264,-151.0,0.00027046,7]
[366819992,1750474253275,-183.408709,0.00027046,7]
[366819993,1750474253288,-183.408709,0.00027046,7]
[366819994,1750474253303,-490.0,0.00027046,4]
[366819995,1750474253312,-490.0,0.00027046,4]
[366819996,1750474253322,-490.0,0.00027046,4]
[366819997,1750474253332,-490.0,0.00027046,4]
[366819998,1750474253341,-490.0,0.00027046,4]
[366819999,1750474253352,-490.0,0.00027046,4]
[366820000,1750474253362,-490.0,0.00027046,4]
[366820001,1750474253372,-196.06391954,0.00027046,4]
[366820002,1750474253382,-490.0,0.00027046,4]
[366820003,1750474253392,-490.0,0.00027046,4]
[366820004,1750474253403,-475.22246099,0.00027046,4]
[366820005,1750474253413,-490.0,0.00027046,4]
[366820006,1750474253423,-404.23,0.00027046,4]
[366820007,1750474253434,-192.117625,0.00027046,7]
[366820008,1750474253444,-192.117623,0.00027046,7]
[366820009,1750474253457,-150.0,0.00027049,2]
[366820010,1750474253467,-500.0,0.00027082,4]
[366820011,1750474253478,-306.59770137,0.00027083,4]
[366820012,1750474253488,-490.0,0.00027083,4]
[366820013,1750474253499,-490.0,0.00027083,4]
[366820014,1750474253510,-490.0,0.00027083,4]
[366820015,1750474253520,-490.0,0.00027083,4]
[366820016,1750474253531,-490.0,0.00027083,4]
[366820017,1750474253540,-490.0,0.00027083,4]
[366820018,1750474253550,-490.0,0.00027083,4]
[366820019,1750474253561,-490.0,0.00027083,4]
[366820020,1750474253571,-490.0,0.00027083,4]
[366820021,1750474253582,-490.0,0.00027083,4]
[366820022,1750474253592,-490.0,0.00027083,4]
[366820023,1750474253602,-490.0,0.00027083,4]
[366820024,1750474253613,-490.0,0.00027083,4]
[366820025,1750474253623,-490.0,0.00027083,4]
[366820026,1750474253635,-490.0,0.00027083,4]
[366820027,1750474253647,-490.0,0.00027083,4]
[366820028,1750474253657,-383.73156308,0.00027083,4]
[366820029,1750474253667,-490.0,0.00027083,4]
[366820030,1750474253677,-265.94453272,0.00027083,4]
[366820031,1750474253687,-490.0,0.00027083,4]
[366820032,1750474253698,-490.0,0.00027083,4]
[366820033,1750474253709,-490.0,0.00027083,4]
[366820034,1750474253719,-490.0,0.00027083,4]
[366820035,1750474253729,-490.0,0.00027083,4]
[366820036,1750474253739,-490.0,0.00027083,4]
[366820037,1750474253750,-490.0,0.00027083,4]
[366820038,1750474253760,-490.0,0.00027083,4]
[366820039,1750474253771,-490.0,0.00027083,4]
[366820040,1750474253781,-480.0,0.00027083,4]
[366820041,1750474253792,-490.0,0.00027083,4]
[366820042,1750474253802,-490.0,0.00027083,4]
[366820043,1750474253814,-496.54303417,0.00027083,4]
[366820044,1750474253826,-825.65,0.00027083,4]
[366820045,1750474253836,-490.0,0.00027083,4]
[366820046,1750474253848,-490.0,0.00027083,4]
[366820047,1750474253858,-1964.92,0.00027083,4]
[366820048,1750474253867,-490.0,0.00027083,4]
[366820049,1750474253879,-490.0,0.00027083,4]
[366820050,1750474253889,-560.31,0.00027083,4]
[366820051,1750474253899,-490.0,0.00027083,4]
[366820052,1750474253909,-490.0,0.00027083,4]
[366820053,1750474253921,-490.0,0.00027083,4]
[366820054,1750474253933,-860.96,0.00027083,4]
[366820055,1750474253943,-490.0,0.00027083,4]
[366820056,1750474253954,-503.75,0.00027083,4]
[366820057,1750474253964,-490.0,0.00027083,4]
[366820058,1750474253975,-664.46,0.00027083,4]
[366820059,1750474253984,-490.0,0.00027083,4]
[366820060,1750474253994,-490.0,0.00027083,4]
[366820061,1750474254003,-490.0,0.00027083,4]
[366820062,1750474254013,-490.0,0.00027083,4]
[366820063,1750474254023,-490.0,0.00027083,4]
[366820064,1750474254034,-490.0,0.00027083,4]
[366820065,1750474254045,-610.22,0.00027083,4]
[366820066,1750474254056,-830.0,0.00027083,4]
[366820067,1750474254065,-490.0,0.00027083,4]
[366820068,1750474254074,-490.0,0.00027083,4]
[366820069,1750474254084,-299.13358088,0.00027083,4]
[366820070,1750474254095,-490.0,0.00027083,4]
[366820071,1750474254109,-490.0,0.00027083,4]
[366820072,1750474254119,-1694.66,0.00027083,4]
[366820073,1750474254130,-490.0,0.00027083,4]
[366820074,1750474254140,-490.0,0.00027083,4]
[366820075,1750474254149,-490.0,0.00027083,4]
[366820076,1750474254160,-800.56,0.00027083,4]
[366820077,1750474254170,-490.0,0.00027083,4]
[366820078,1750474254181,-490.0,0.00027083,4]
[366820079,1750474254191,-490.0,0.00027083,4]
[366820080,1750474254202,-490.0,0.00027083,4]
[366820081,1750474254212,-490.0,0.00027083,4]
[366820082,1750474254223,-490.0,0.00027083,4]
[366820083,1750474254234,-490.0,0.00027083,4]
[366820084,1750474254244,-490.0,0.00027083,4]
[366820085,1750474254254,-630.70958035,0.00027083,4]
[366820086,1750474254264,-490.0,0.00027083,4]
[366820087,1750474254274,-490.0,0.00027083,4]
[366820088,1750474254285,-490.0,0.00027083,4]
[366820089,1750474254296,-490.0,0.00027083,4]
[366820090,1750474254307,-490.0,0.00027083,4]
[366820091,1750474254318,-490.0,0.00027083,4]
[366820092,1750474254327,-490.0,0.00027083,4]
[366820093,1750474254338,-490.0,0.00027083,4]
[366820094,1750474254348,-3575.2,0.00027123,2]
[366820095,1750474254360,-150.0,0.00027144,2]
[366820096,1750474254370,-150.0,0.00027164,2]
[366820097,1750474254382,-150.0,0.00027165,2]
[366820098,1750474254393,-150.0,0.00027168,2]
[366820099,1750474254405,-150.0,0.00027173,2]
[366820100,1750474254416,-191.0,0.00027175,7]
[366820101,1750474254426,-168.0,0.00027181,2]
[366820102,1750474254438,-150.0,0.00027182,2]
[366820103,1750474254449,-1000.0,0.00027192,2]
[366820104,1750474254459,-150.0,0.00027193,2]
[366820105,1750474254469,-847.5,0.00027196,15]
[366820106,1750474254479,-150.0,0.00027204,2]